Workbook

Sheet Mapa (hidden)
A1: Datos de weibull del mapa eólico
A2: Grilla | B2: Altura (m) | D2: k | E2: c
A3: A1 | B3: 15 | C3: =A3&B3 -> A115 | D3: --- | E3: ---
A4: A2 | B4: 15 | C4: =A4&B4 -> A215 | D4: 2.74 | E4: 3.9
A5: A3 | B5: 15 | C5: A315 | D5: 2.7 | E5: 3.6
A6: A4 | B6: 15 | C6: A415 | D6: 2.64 | E6: 3.6
A7: A5 | B7: 15 | C7: A515 | D7: 2.54 | E7: 3.9
A8: A6 | B8: 15 | C8: A615 | D8: --- | E8: ---
A9: A7 | B9: 15 | C9: A715 | D9: --- | E9: ---
A10: A8 | B10: 15 | C10: A815 | D10: --- | E10: ---
A11: A9 | B11: 15 | C11: A915 | D11: --- | E11: ---
A12: A0 | B12: 15 | C12: A015 | D12: --- | E12: ---
A13: B1 | B13: 15 | C13: B115 | D13: --- | E13: ---
A14: B2 | B14: 15 | C14: B215 | D14: 2.74 | E14: 3.9
A15: B3 | B15: 15 | C15: B315 | D15: 2.7 | E15: 3.9
A16: B4 | B16: 15 | C16: B415 | D16: 2.63 | E16: 3.7
A17: B5 | B17: 15 | C17: B515 | D17: 2.5 | E17: 3.7
A18: B6 | B18: 15 | C18: B615 | D18: 2.41 | E18: 3.6
A19: B7 | B19: 15 | C19: B715 | D19: --- | E19: ---
A20: B8 | B20: 15 | C20: B815 | D20: --- | E20: ---
A21: B9 | B21: 15 | C21: B915 | D21: --- | E21: ---
A22: B0 | B22: 15 | C22: B015 | D22: --- | E22: ---
A23: C1 | B23: 15 | C23: C115 | D23: --- | E23: ---
A24: C2 | B24: 15 | C24: C215 | D24: 2.73 | E24: 4
A25: C3 | B25: 15 | C25: C315 | D25: 2.7 | E25: 3.9
A26: C4 | B26: 15 | C26: C415 | D26: 2.67 | E26: 3.8
A27: C5 | B27: 15 | C27: C515 | D27: 2.59 | E27: 4.4
A28: C6 | B28: 15 | C28: C615 | D28: 2.52 | E28: 3.4
A29: C7 | B29: 15 | C29: C715 | D29: 2.6 | E29: 3.5
A30: C8 | B30: 15 | C30: C815 | D30: 2.7 | E30: 3.7
A31: C9 | B31: 15 | C31: C915 | D31: 0 | E31: 0
A32: C0 | B32: 15 | C32: C015 | D32: --- | E32: ---
A33: D1 | B33: 15 | C33: D115 | D33: 2.74 | E33: 4.4
A34: D2 | B34: 15 | C34: D215 | D34: 2.71 | E34: 4.2
A35: D3 | B35: 15 | C35: D315 | D35: 2.68 | E35: 4.1
A36: D4 | B36: 15 | C36: D415 | D36: 2.66 | E36: 4.6
A37: D5 | B37: 15 | C37: D515 | D37: 2.67 | E37: 4
A38: D6 | B38: 15 | C38: D615 | D38: 2.69 | E38: 3.6
A39: D7 | B39: 15 | C39: D715 | D39: 2.71 | E39: 4.4
A40: D8 | B40: 15 | C40: D815 | D40: 2.68 | E40: 4
A41: D9 | B41: 15 | C41: D915 | D41: 2.68 | E41: 4
A42: D0 | B42: 15 | C42: D015 | D42: --- | E42: ---
A43: E1 | B43: 15 | C43: E115 | D43: 2.69 | E43: 4.3
A44: E2 | B44: 15 | C44: E215 | D44: 2.62 | E44: 4.2
A45: E3 | B45: 15 | C45: E315 | D45: 2.55 | E45: 4.4
A46: E4 | B46: 15 | C46: E415 | D46: 2.55 | E46: 4.4
A47: E5 | B47: 15 | C47: E515 | D47: 2.59 | E47: 4.7
A48: E6 | B48: 15 | C48: E615 | D48: 2.7 | E48: 4.1
A49: E7 | B49: 15 | C49: E715 | D49: 2.72 | E49: 4
A50: E8 | B50: 15 | C50: E815 | D50: 2.61 | E50: 4.3
A51: E9 | B51: 15 | C51: E915 | D51: 2.63 | E51: 4.2
A52: E0 | B52: 15 | C52: E015 | D52: 2.72 | E52: 3.9
A53: F1 | B53: 15 | C53: F115 | D53: --- | E53: ---
A54: F2 | B54: 15 | C54: F215 | D54: 2.68 | E54: 4.5
A55: F3 | B55: 15 | C55: F315 | D55: 2.6 | E55: 4.4
A56: F4 | B56: 15 | C56: F415 | D56: 2.47 | E56: 4.7
A57: F5 | B57: 15 | C57: F515 | D57: 2.52 | E57: 4.5
A58: F6 | B58: 15 | C58: F615 | D58: 2.71 | E58: 4.5
A59: F7 | B59: 15 | C59: F715 | D59: 2.76 | E59: 4.5
A60: F8 | B60: 15 | C60: F815 | D60: 2.69 | E60: 5.2
A61: F9 | B61: 15 | C61: F915 | D61: 2.69 | E61: 3.9
A62: F0 | B62: 15 | C62: F015 | D62: 2.76 | E62: 4
A63: G1 | B63: 15 | C63: G115 | D63: 2.62 | E63: 4.5
A64: G2 | B64: 15 | C64: G215 | D64: 2.64 | E64: 4.6
A65: G3 | B65: 15 | C65: G315 | D65: 2.66 | E65: 4.6
A66: G4 | B66: 15 | C66: G415 | D66: 2.6 | E66: 4.4
A67: G5 | B67: 15 | C67: G515 | D67: 2.66 | E67: 4.7
A68: G6 | B68: 15 | C68: =A68&B68 -> G615 | D68: 2.79 | E68: 4.7
A69: G7 | B69: 15 | C69: G715 | D69: 2.85 | E69: 4.8
A70: G8 | B70: 15 | C70: G815 | D70: 2.83 | E70: 3.9
A71: G9 | B71: 15 | C71: G915 | D71: 2.83 | E71: 3.9
A72: G0 | B72: 15 | C72: G015 | D72: --- | E72: ---
A73: H1 | B73: 15 | C73: H115 | D73: 2.47 | E73: 4.6
A74: H2 | B74: 15 | C74: H215 | D74: 2.46 | E74: 5
A75: H3 | B75: 15 | C75: H315 | D75: 2.6 | E75: 5.4
A76: H4 | B76: 15 | C76: H415 | D76: 2.74 | E76: 5.2
A77: H5 | B77: 15 | C77: H515 | D77: 2.82 | E77: 4.9
A78: H6 | B78: 15 | C78: H615 | D78: 2.86 | E78: 5.1
A79: H7 | B79: 15 | C79: H715 | D79: 2.88 | E79: 4.8
A80: H8 | B80: 15 | C80: H815 | D80: 2.88 | E80: 4.8
A81: H9 | B81: 15 | C81: H915 | D81: 2.89 | E81: 4.3
A82: H0 | B82: 15 | C82: H015 | D82: 2.89 | E82: 4.5
A83: I1 | B83: 15 | C83: I115 | D83: 2.34 | E83: 4.9
A84: I2 | B84: 15 | C84: I215 | D84: 2.26 | E84: 4.9
A85: I3 | B85: 15 | C85: I315 | D85: 2.42 | E85: 4.9
A86: I4 | B86: 15 | C86: I415 | D86: 2.71 | E86: 4.7
A87: I5 | B87: 15 | C87: I515 | D87: 2.76 | E87: 4.9
A88: I6 | B88: 15 | C88: I615 | D88: 2.79 | E88: 4.9
A89: I7 | B89: 15 | C89: I715 | D89: 2.78 | E89: 5.8
A90: I8 | B90: 15 | C90: I815 | D90: 2.8 | E90: 6.1
A91: I9 | B91: 15 | C91: I915 | D91: 2.85 | E91: 4.7
A92: I0 | B92: 15 | C92: I015 | D92: --- | E92: ---
A93: J1 | B93: 15 | C93: J115 | D93: --- | E93: ---
A94: J2 | B94: 15 | C94: J215 | D94: --- | E94: ---
A95: J3 | B95: 15 | C95: J315 | D95: --- | E95: ---
A96: J4 | B96: 15 | C96: J415 | D96: 2.69 | E96: 4.8
A97: J5 | B97: 15 | C97: J515 | D97: 2.66 | E97: 5.5
A98: J6 | B98: 15 | C98: J615 | D98: 2.72 | E98: 5.2
A99: J7 | B99: 15 | C99: J715 | D99: 2.61 | E99: 5.3
A100: J8 | B100: 15 | C100: J815 | D100: 2.68 | E100: 5.1
A101: J9 | B101: 15 | C101: J915 | D101: 2.78 | E101: 4.9
A102: J0 | B102: 15 | C102: J015 | D102: --- | E102: ---
A103: A1 | B103: 30 | C103: A130 | D103: 0 | E103: 0
A104: A2 | B104: 30 | C104: A230 | D104: 2.74 | E104: 5.3
A105: A3 | B105: 30 | C105: A330 | D105: 2.7 | E105: 5.1
A106: A4 | B106: 30 | C106: A430 | D106: 2.63 | E106: 5
A107: A5 | B107: 30 | C107: A530 | D107: 2.54 | E107: 5
A108: A6 | B108: 30 | C108: A630 | D108: --- | E108: ---
A109: A7 | B109: 30 | C109: A730 | D109: --- | E109: ---
A110: A8 | B110: 30 | C110: A830 | D110: --- | E110: ---
A111: A9 | B111: 30 | C111: A930 | D111: --- | E111: ---
A112: A0 | B112: 30 | C112: A030 | D112: --- | E112: ---
A113: B1 | B113: 30 | C113: B130 | D113: --- | E113: ---
A114: B2 | B114: 30 | C114: B230 | D114: 2.74 | E114: 5.4
A115: B3 | B115: 30 | C115: B330 | D115: 2.7 | E115: 5.3
A116: B4 | B116: 30 | C116: B430 | D116: 2.63 | E116: 5
A117: B5 | B117: 30 | C117: B530 | D117: 2.5 | E117: 4.9
A118: B6 | B118: 30 | C118: B630 | D118: 2.41 | E118: 4.9
A119: B7 | B119: 30 | C119: B730 | D119: --- | E119: ---
A120: B8 | B120: 30 | C120: B830 | D120: --- | E120: ---
A121: B9 | B121: 30 | C121: B930 | D121: --- | E121: ---
A122: B0 | B122: 30 | C122: B030 | D122: --- | E122: ---
A123: C1 | B123: 30 | C123: C130 | D123: --- | E123: ---
A124: C2 | B124: 30 | C124: C230 | D124: 2.73 | E124: 5.5
A125: C3 | B125: 30 | C125: C330 | D125: 2.71 | E125: 5.4
A126: C4 | B126: 30 | C126: C430 | D126: 2.67 | E126: 5.2
A127: C5 | B127: 30 | C127: C530 | D127: 2.59 | E127: 5.4
A128: C6 | B128: 30 | C128: C630 | D128: 2.51 | E128: 4.8
A129: C7 | B129: 30 | C129: C730 | D129: 2.6 | E129: 4.9
A130: C8 | B130: 30 | C130: C830 | D130: 2.7 | E130: 5.1
A131: C9 | B131: 30 | C131: C930 | D131: --- | E131: ---
A132: C0 | B132: 30 | C132: =A132&B132 -> C030 | D132: --- | E132: ---
A133: D1 | B133: 30 | C133: D130 | D133: 2.74 | E133: 5.8
A134: D2 | B134: 30 | C134: D230 | D134: 2.72 | E134: 5.7
A135: D3 | B135: 30 | C135: D330 | D135: 2.68 | E135: 5.7
A136: D4 | B136: 30 | C136: D430 | D136: 2.66 | E136: 5.8
A137: D5 | B137: 30 | C137: D530 | D137: 2.67 | E137: 5.4
A138: D6 | B138: 30 | C138: D630 | D138: 2.69 | E138: 5.1
A139: D7 | B139: 30 | C139: D730 | D139: 2.71 | E139: 5.5
A140: D8 | B140: 30 | C140: D830 | D140: 2.68 | E140: 5.5
A141: D9 | B141: 30 | C141: D930 | D141: 2.68 | E141: 5.5
A142: D0 | B142: 30 | C142: D030 | D142: --- | E142: ---
A143: E1 | B143: 30 | C143: E130 | D143: 2.69 | E143: 5.9
A144: E2 | B144: 30 | C144: E230 | D144: 2.63 | E144: 6
A145: E3 | B145: 30 | C145: E330 | D145: 2.56 | E145: 6.1
A146: E4 | B146: 30 | C146: E430 | D146: 2.56 | E146: 6.1
A147: E5 | B147: 30 | C147: E530 | D147: 2.6 | E147: 6.1
A148: E6 | B148: 30 | C148: E630 | D148: 2.7 | E148: 5.6
A149: E7 | B149: 30 | C149: E730 | D149: 2.71 | E149: 5.5
A150: E8 | B150: 30 | C150: E830 | D150: 2.61 | E150: 5.7
A151: E9 | B151: 30 | C151: E930 | D151: 2.63 | E151: 5.6
A152: E0 | B152: 30 | C152: E030 | D152: 2.72 | E152: 5.5
A153: F1 | B153: 30 | C153: F130 | D153: --- | E153: ---
A154: F2 | B154: 30 | C154: F230 | D154: 2.68 | E154: 6.1
A155: F3 | B155: 30 | C155: F330 | D155: 2.6 | E155: 6.1
A156: F4 | B156: 30 | C156: F430 | D156: 2.47 | E156: 6.4
A157: F5 | B157: 30 | C157: F530 | D157: 2.52 | E157: 6.3
A158: F6 | B158: 30 | C158: F630 | D158: 2.71 | E158: 6
A159: F7 | B159: 30 | C159: F730 | D159: 2.76 | E159: 5.8
A160: F8 | B160: 30 | C160: F830 | D160: 2.68 | E160: 6.1
A161: F9 | B161: 30 | C161: F930 | D161: 2.69 | E161: 5.5
A162: F0 | B162: 30 | C162: F030 | D162: 2.76 | E162: 5.6
A163: G1 | B163: 30 | C163: G130 | D163: 2.62 | E163: 6.1
A164: G2 | B164: 30 | C164: G230 | D164: 2.64 | E164: 6.2
A165: G3 | B165: 30 | C165: G330 | D165: 2.66 | E165: 6.2
A166: G4 | B166: 30 | C166: G430 | D166: 2.6 | E166: 6.2
A167: G5 | B167: 30 | C167: G530 | D167: 2.66 | E167: 6.2
A168: G6 | B168: 30 | C168: G630 | D168: 2.79 | E168: 6.1
A169: G7 | B169: 30 | C169: G730 | D169: 2.85 | E169: 6.1
A170: G8 | B170: 30 | C170: G830 | D170: 2.83 | E170: 5.6
A171: G9 | B171: 30 | C171: G930 | D171: 2.82 | E171: 5.6
A172: G0 | B172: 30 | C172: G030 | D172: --- | E172: ---
A173: H1 | B173: 30 | C173: H130 | D173: 2.47 | E173: 6.4
A174: H2 | B174: 30 | C174: H230 | D174: 2.46 | E174: 6.5
A175: H3 | B175: 30 | C175: H330 | D175: 2.6 | E175: 6.6
A176: H4 | B176: 30 | C176: H430 | D176: 2.74 | E176: 6.4
A177: H5 | B177: 30 | C177: H530 | D177: 2.82 | E177: 6.4
A178: H6 | B178: 30 | C178: H630 | D178: 2.86 | E178: 6.5
A179: H7 | B179: 30 | C179: H730 | D179: 2.88 | E179: 6.3
A180: H8 | B180: 30 | C180: H830 | D180: 2.88 | E180: 6.2
A181: H9 | B181: 30 | C181: H930 | D181: 2.89 | E181: 6
A182: H0 | B182: 30 | C182: H030 | D182: 2.89 | E182: 6
A183: I1 | B183: 30 | C183: I130 | D183: 2.34 | E183: 6.6
A184: I2 | B184: 30 | C184: I230 | D184: 2.25 | E184: 6.7
A185: I3 | B185: 30 | C185: I330 | D185: 2.42 | E185: 6.6
A186: I4 | B186: 30 | C186: I430 | D186: 2.71 | E186: 6.5
A187: I5 | B187: 30 | C187: I530 | D187: 2.77 | E187: 6.8
A188: I6 | B188: 30 | C188: I630 | D188: 2.79 | E188: 6.8
A189: I7 | B189: 30 | C189: I730 | D189: 2.78 | E189: 7.1
A190: I8 | B190: 30 | C190: I830 | D190: 2.81 | E190: 7.2
A191: I9 | B191: 30 | C191: I930 | D191: 2.85 | E191: 6.4
A192: I0 | B192: 30 | C192: I030 | D192: --- | E192: ---
A193: J1 | B193: 30 | C193: J130 | D193: --- | E193: ---
A194: J2 | B194: 30 | C194: J230 | D194: --- | E194: ---
A195: J3 | B195: 30 | C195: J330 | D195: --- | E195: ---
A196: J4 | B196: 30 | C196: =A196&B196 -> J430 | D196: 2.69 | E196: 6.8
A197: J5 | B197: 30 | C197: J530 | D197: 2.66 | E197: 7.3
A198: J6 | B198: 30 | C198: J630 | D198: 2.72 | E198: 7.1
A199: J7 | B199: 30 | C199: J730 | D199: 2.62 | E199: 7.4
A200: J8 | B200: 30 | C200: J830 | D200: 2.68 | E200: 7.1
... 202 more rows

Sheet Aeros
D1: Curva de potencia (kW)
C2: Vel (m/s) ->
A3: Aerogenerador | B3: Clase | C3: Categoría | D3: 0 | E3: 1 | F3: 2 | G3: 3 | H3: 4 | I3: 5 | J3: 6 | K3: 7 | L3: 8 | M3: 9 | N3: 10 | O3: 11 | P3: 12 | Q3: 13 | R3: 14 | S3: 15 | T3: 16 | U3: 17 | V3: 18 | W3: 19 | X3: 20 | Y3: 21 | Z3: 22 | AA3: 23 | AB3: 24 | AC3: 25 | AD3: Detalles
A4: Standard1 | B4: I | C4: Gran escala | D4: 0 | E4: 0 | F4: 0 | G4: 0 | H4: 50 | I4: 150 | J4: 300 | K4: 450 | L4: 700 | M4: 950 | N4: 1280 | O4: 1600 | P4: 1850 | Q4: 1970 | R4: 2000 | S4: 2000 | T4: 2000 | U4: 2000 | V4: 2000 | W4: 2000 | X4: 2000 | Y4: 2000 | Z4: 2000 | AA4: 2000 | AB4: 2000 | AC4: 2000 | AD4: S/D
A5: Standard2 | B5: II | C5: Gran escala | D5: 0 | E5: 0 | F5: 0 | G5: 0 | H5: 50 | I5: 200 | J5: 400 | K5: 600 | L5: 850 | M5: 1200 | N5: 1580 | O5: 1820 | P5: 1950 | Q5: 2000 | R5: 2000 | S5: 2000 | T5: 2000 | U5: 2000 | V5: 2000 | W5: 2000 | X5: 2000 | Y5: 2000 | Z5: 2000 | AA5: 2000 | AB5: 2000 | AC5: 2000 | AD5: S/D
A6: Standard3 | B6: III | C6: Gran escala | D6: 0 | E6: 0 | F6: 0 | G6: 0 | H6: 100 | I6: 240 | J6: 450 | K6: 700 | L6: 1050 | M6: 1500 | N6: 1800 | O6: 1950 | P6: 2000 | Q6: 2000 | R6: 2000 | S6: 2000 | T6: 2000 | U6: 2000 | V6: 2000 | W6: 2000 | X6: 2000 | Y6: 2000 | Z6: 2000 | AA6: 2000 | AB6: 2000 | AC6: 2000 | AD6: S/D
A7: Aero1 | B7: - | C7: Gran escala | AD7: S/D
A8: Aero2 | B8: - | C8: Gran escala | AD8: S/D
A9: Micro1 | B9: - | C9: Microescala | D9: 0 | E9: 0 | F9: 0 | G9: 0.02 | H9: 0.05 | I9: 0.09 | J9: 0.17 | K9: 0.25 | L9: 0.35 | M9: 0.45 | N9: 0.6 | O9: 0.75 | P9: 0.78 | Q9: 0.8 | R9: 0.03 | S9: 0 | T9: 0 | U9: 0 | V9: 0 | W9: 0 | X9: 0 | Y9: 0 | Z9: 0 | AA9: 0 | AB9: 0 | AC9: 0 | AD9: S/D
A10: Micro2 | B10: - | C10: Microescala | D10: 0 | E10: 0 | F10: 0 | G10: 0.06 | H10: 0.18 | I10: 0.39 | J10: 0.6 | K10: 0.9 | L10: 1.2 | M10: 1.56 | N10: 1.98 | O10: 2.4 | P10: 3 | Q10: 3.21 | R10: 1.5 | S10: 0 | T10: 0 | U10: 0 | V10: 0 | W10: 0 | X10: 0 | Y10: 0 | Z10: 0 | AA10: 0 | AB10: 0 | AC10: 0 | AD10: S/D
A11: Micro3 | B11: - | C11: Microescala | D11: 0 | E11: 0 | F11: 0 | G11: 0.05 | H11: 0.3 | I11: 0.5 | J11: 1 | K11: 1.5 | L11: 2.4 | M11: 3.2 | N11: 4.5 | O11: 6 | P11: 6 | Q11: 6 | R11: 6 | S11: 6 | T11: 0 | U11: 0 | V11: 0 | W11: 0 | X11: 0 | Y11: 0 | Z11: 0 | AA11: 0 | AB11: 0 | AC11: 0 | AD11: S/D
A12: Micro4 | B12: - | C12: Microescala | AD12: S/D
A13: Micro5 | B13: - | C13: Microescala | AD13: S/D

Sheet Calculo
A1: Simulador de producción energética de un generador eólico en Uruguay
U2: Versión 5
B4: Datos del sitio | M4: Vel (m/s) | N4: Weibull | O4: Pot (kW)
B5: Modo de selección | H5: =IF(C5="MANUAL",1,2) -> 2 | M5: 0 | N5: =($I$9/$I$8)*((M5/$I$8)^($I$9-1))*EXP(-((M5/$I$8)^$I$9)) -> 0 | O5: =VLOOKUP($C$18,Aeros!$A$3:$AC$13,4,FALSE) -> 0 | S5: Impreso: | T5: =TODAY() -> 2011-11-03
B6: =IF(C5="MANUAL","Ingrese los datos de 'c' y 'k' de Weibull manualmente",IF(C5 = "GRILLA MAPA EOLICO","Seleccione la Grilla y Altura del Mapa Eólico, los valores de 'c' y 'k' se calcularán automáticamente","Seleccione modo de ingreso de datos")) -> Seleccione modo de ingreso de datos | M6: 1 | N6: =($I$9/$I$8)*((M6/$I$8)^($I$9-1))*EXP(-((M6/$I$8)^$I$9)) -> 0.03277832095 | O6: =VLOOKUP($C$18,Aeros!$A$3:$AC$13,5,FALSE) -> 0
M7: 2 | N7: =($I$9/$I$8)*((M7/$I$8)^($I$9-1))*EXP(-((M7/$I$8)^$I$9)) -> 0.09953860481 | O7: =VLOOKUP($C$18,Aeros!$A$3:$AC$13,6,FALSE) -> 0
B8: Grilla del mapa eólico | C8: A | D8: 3 | F8: c | G8: =VLOOKUP($C$8&$D$8&$C$9,Mapa!C3:E402,3,FALSE) -> 5.1 | I8: =IF(C5="MANUAL",G10,G8) -> 5.1 | M8: 3 | N8: 0.1691919615 | O8: =VLOOKUP($C$18,Aeros!$A$3:$AC$13,7,FALSE) -> 0.05
B9: Altura de instalación (m) | C9: 30 | F9: k | G9: =VLOOKUP($C$8&$D$8&$C$9,Mapa!C3:E402,2,FALSE) -> 2.7 | I9: =IF(C5="MANUAL",G11,G9) -> 2.7 | M9: 4 | N9: 0.2084734326 | O9: =VLOOKUP($C$18,Aeros!$A$3:$AC$13,8,FALSE) -> 0.3
B10: Carga manual de parámetros | F10: c | G10: 7.5 | M10: 5 | N10: 0.1983761374 | O10: =VLOOKUP($C$18,Aeros!$A$3:$AC$13,9,FALSE) -> 0.5
F11: k | G11: 2.55 | M11: 6 | N11: 0.1479984623 | O11: =VLOOKUP($C$18,Aeros!$A$3:$AC$13,10,FALSE) -> 1
M12: 7 | N12: 0.08637616635 | O12: =VLOOKUP($C$18,Aeros!$A$3:$AC$13,11,FALSE) -> 1.5
B13: Datos de viento | M13: 8 | N13: 0.03905553386 | O13: =VLOOKUP($C$18,Aeros!$A$3:$AC$13,12,FALSE) -> 2.4
B14: Velocidad media (m/s) | C14: =$I$8*EXP(GAMMALN(1+1/$I$9)) -> 4.53534367 | M14: 9 | N14: 0.01350023247 | O14: =VLOOKUP($C$18,Aeros!$A$3:$AC$13,13,FALSE) -> 3.2
B15: Clase del sitio* (orientativo) | C15: =IF(C14>10,"S",IF(C14>8.5,"I",IF(C14>7.5,"II","III"))) -> III | M15: 10 | N15: 0.003513942357 | O15: =VLOOKUP($C$18,Aeros!$A$3:$AC$13,14,FALSE) -> 4.5
M16: 11 | N16: 0.000677736551 | O16: =VLOOKUP($C$18,Aeros!$A$3:$AC$13,15,FALSE) -> 6
B17: Aerogenerador | M17: 12 | N17: 9.527065943e-05 | O17: =VLOOKUP($C$18,Aeros!$A$3:$AC$13,16,FALSE) -> 6
B18: Aerogenerador a instalar | C18: Micro3 | M18: 13 | N18: 9.599003606e-06 | O18: =VLOOKUP($C$18,Aeros!$A$3:$AC$13,17,FALSE) -> 6
B19: Clase | C19: =VLOOKUP(C18,Aeros!A4:C13,2,FALSE) -> - | M19: 14 | N19: 6.816855037e-07 | O19: =VLOOKUP($C$18,Aeros!$A$3:$AC$13,18,FALSE) -> 6
B20: Categoría | C20: =VLOOKUP(C18,Aeros!A4:C13,3,FALSE) -> Microescala | M20: 15 | N20: 3.355681599e-08 | O20: =VLOOKUP($C$18,Aeros!$A$3:$AC$13,19,FALSE) -> 6
B21: Potencia máxima (kW) | C21: =MAX(O5:O30) -> 6 | M21: 16 | N21: 1.126195277e-09 | O21: =VLOOKUP($C$18,Aeros!$A$3:$AC$13,20,FALSE) -> 0
B22: =VLOOKUP(C18,Aeros!A4:AD13,30,FALSE) -> S/D | M22: 17 | N22: 2.534802606e-11 | O22: =VLOOKUP($C$18,Aeros!$A$3:$AC$13,21,FALSE) -> 0
M23: 18 | N23: 3.764480493e-13 | O23: =VLOOKUP($C$18,Aeros!$A$3:$AC$13,22,FALSE) -> 0 | Q23: Notas:
M24: 19 | N24: 3.62998909e-15 | O24: =VLOOKUP($C$18,Aeros!$A$3:$AC$13,23,FALSE) -> 0
B25: Resultados estimados | M25: 20 | N25: 2.236822356e-17 | O25: =VLOOKUP($C$18,Aeros!$A$3:$AC$13,24,FALSE) -> 0
B26: Producción anual | C26: =IF(SUMPRODUCT(N5:N30,O5:O30)*8760/1000<10, ROUND(SUMPRODUCT(N5:N30,O5:O30),1)*8760 & " kWh", ROUND(SUMPRODUCT(N5:N30,O5:O30)*8760/1000,0) & " MWh") -> 5256 kWh | M26: 21 | N26: 8.670575182e-20 | O26: =VLOOKUP($C$18,Aeros!$A$3:$AC$13,25,FALSE) -> 0
B27: Factor de capacidad | C27: =SUMPRODUCT(N5:N30,O5:O30)*8760/(MAX(O5:O30)*8760) -> 0.1008665172 | M27: 22 | N27: 2.081593044e-22 | O27: =VLOOKUP($C$18,Aeros!$A$3:$AC$13,26,FALSE) -> 0
M28: 23 | N28: 3.047838614e-25 | O28: =VLOOKUP($C$18,Aeros!$A$3:$AC$13,27,FALSE) -> 0
B29: * La clase del sitio se da en formar orientativa y tomando únicamente en cuenta la velocidad media. | M29: 24 | N29: 2.680566657e-28 | O29: =VLOOKUP($C$18,Aeros!$A$3:$AC$13,28,FALSE) -> 0
M30: 25 | N30: 1.394959254e-31 | O30: =VLOOKUP($C$18,Aeros!$A$3:$AC$13,29,FALSE) -> 0
